Cogmind - Beta 14 @@@ ROGUE MODE // 2024.10.11 @ 19:22:25 Player: Ciaphas Result: Self-destructed Performance ------------- Evolutions (2) 1000 Regions Visited (6) 1200 Robots Destroyed (65) 325 Value Destroyed (1700) 1700 Prototype IDs (23) 460 Alien Tech Used (0) 0 Bonus (606) 606 TOTAL SCORE: 5291 Bonus ------- High Alert Combat Kills 106 Entered Garrisons 200 Aligned with FarCom 300 Cogmind --------- Core Integrity 273/550 Matter 144/300 Energy 7/100 System Corruption 0% Temperature Cool (0) Movement Walking (107) Location -8/Garrison Parts ------- > --- POWER (1) -------- (None) > --- PROPULSION (4) --- Carbon-fiber Leg Titanium Leg Potential Leg Potential Leg > --- UTILITY (4) ------ Large Storage Unit Advanced Targeting Computer Launcher Guidance Computer > --- WEAPON (2) ------- Heavy Assault Rifle Mining Laser > --- INVENTORY (15) --- Cesium-ion Thruster Cesium-ion Thruster Cesium-ion Thruster Advanced Weight Redist. System Hacking Suite Relay Coupler [Behemoth] (10) Heavy Assault Rifle Gauss Rifle Improved Grenade Launcher Improved Grenade Launcher Improved Datajack Hammer Scythe Peak State ------------ > --- POWER ------------ Light Deuterium Engine > --- PROPULSION ------- Carbon-fiber Leg Titanium Leg Potential Leg Potential Leg > --- UTILITY ---------- Large Storage Unit Advanced Targeting Computer Launcher Guidance Computer Reaction Control System > --- WEAPON ----------- Gauss Rifle Improved Grenade Launcher > --- INVENTORY -------- Light Nuclear Core Carbon-fiber Leg Cesium-ion Thruster Cesium-ion Thruster Cesium-ion Thruster Advanced Weight Redist. System Hacking Suite Relay Coupler [Behemoth] Heavy Assault Rifle Heavy Assault Rifle Improved Grenade Launcher Improved Datajack Mining Laser Hammer Scythe [Rating: 51] Favorites ----------- Power Ion Engine Engine Ion Engine Power Core Light Nuclear Core Propulsion Potential Leg Treads Light Treads Leg Potential Leg Utility Large Storage Unit Device Reaction Control System Storage Large Storage Unit Processor Signal Interpreter Protection Improved Light Armor Plating Weapon Heavy Assault Rifle Energy Gun Medium Laser Ballistic Gun Heavy Assault Rifle Launcher Improved Grenade Launcher Special Weapon Mining Laser Impact Weapon Hammer Build | -11 -10 -10 -10 -9 -8 -8 ------- Run | Yrd Mat Min Exi Min Mat Gar Slots Evolved 4 | . . . . . 4 . Power . | . . . . . . . Propulsion 2 | . . . . . 2 . Utility 2 | . . . . . 2 . Weapon . | . . . . . . . Parts Attached 72 | 3 12 . 5 10 34 8 Power 6 | . 1 . . . 4 1 Engine 4 | . 1 . . . 3 . Core 2 | . . . . . 1 1 Reactor . | . . . . . . . Propulsion 15 | 2 2 . 2 . 7 2 Treads 6 | 2 2 . . . 2 . Leg 9 | . . . 2 . 5 2 Wheel . | . . . . . . . Hover . | . . . . . . . Flight . | . . . . . . . Utility 16 | 1 5 . 3 1 6 . Device 8 | 1 2 . 2 . 3 . Storage 1 | . 1 . . . . . Processor 3 | . 1 . . . 2 . Hackware . | . . . . . . . Protection 4 | . 1 . 1 1 1 . Artifact . | . . . . . . . Weapon 35 | . 4 . . 9 17 5 Energy Gun . | . . . . . . . Energy Cannon . | . . . . . . . Ballistic Gun 22 | . 4 . . 5 11 2 Ballistic Cannon . | . . . . . . . Launcher 11 | . . . . 4 5 2 Special Weapon 1 | . . . . . . 1 Impact Weapon 1 | . . . . . 1 . Slashing Weapon . | . . . . . . . Piercing Weapon . | . . . . . . . Special Melee Weapon . | . . . . . . . Unidentified Prototypes 2 | . . . 2 . . . Parts Lost 6 | . . . . . 2 4 Power 2 | . . . . . . 2 Propulsion 1 | . . . . . . 1 Utility 2 | . . . . . 1 1 Weapon 1 | . . . . . 1 . Highest Loss Streak 1 | . . . . . 1 1 To Critical Strikes . | . . . . . . . Average Slot Usage (%) 99 | . 99 100 97 100 99 92 Engine 11 | . 14 14 14 14 6 5 Treads 13 | . 28 28 22 . 1 . Leg 16 | . . . 5 28 34 35 Device 2 | . . . . . 8 3 Storage 12 | . 14 14 14 14 9 9 Processor 8 | . 10 14 11 . 9 18 Protection 5 | . 2 . . 14 9 . Ballistic Gun 23 | . 27 28 28 26 16 10 Peak Build Rating 51 | 7 11 10 29 31 50 51 Average Rating 25 | 6 10 10 13 29 45 47 On Entrance 20 | 6 7 10 10 28 31 49 Naked Turns . | . . . . . . . Heaviest Build 40 | 12 31 31 32 34 40 38 Greatest Support 92 | 40 40 40 60 60 92 92 Greatest Overweight (x) 1 | . . . 1 . . . Average Overweight (x) . | . . . . . . . Largest Inventory Capacity 15 | 8 15 15 15 15 15 15 Average Capacity 14 | 8 13 15 15 15 15 15 Most Carried 15 | 6 12 12 15 15 15 15 Average Carried 11 | 2 9 12 12 11 13 14 Final Capacity 15 | 8 15 15 15 15 15 15 Final Carried 14 | 2 12 12 11 12 14 13 Class Distribution -------------------- 92% | Mutant 7% | Scavenger-Mutant Dominant Class ---------------- Mutant | -10/Materials Mutant | -10/Mines Mutant | -10/Exiles Mutant | -9/Mines Mutant | -8/Materials Scavenger-Mutant | -8/Garrison Resources | -11 -10 -10 -10 -9 -8 -8 ----------- Run | Yrd Mat Min Exi Min Mat Gar Matter Collected 1839 | 236 302 . . 357 739 205 Remotely 10 | 10 . . . . . . Salvage Created 1582 | 76 330 . . 220 944 12 Parts 133 | 5 33 . . 20 64 11 Haulers Intercepted 2 | . 1 . . . 1 . Recyclers Shooed 4 | 1 . . . 2 1 . Parts Field Recycled . | . . . . . . . Retrieved Matter . | . . . . . . . Parts Self-Destructed . | . . . . . . . Prevented . | . . . . . . . Kills | -11 -10 -10 -10 -9 -8 -8 ------- Run | Yrd Mat Min Exi Min Mat Gar Combat Hostiles Destroyed 63 | . 8 . . 23 28 4 Guns 25 | . 8 . . 5 12 . AOE 38 | . . . . 18 16 4 Classes Destroyed 12 | 2 5 . . 1 4 . Worker 1 | . . . . . 1 . Builder 2 | . . . . . 2 . Tunneler 3 | 1 . . . 1 1 . Hauler 2 | . 1 . . . 1 . Recycler 2 | 1 . . . 1 . . Operator 2 | . 1 . . . 1 . Watcher 5 | . 2 . . . 3 . Swarmer 26 | . 5 . . 6 11 4 Grunt 16 | . 3 . . 2 11 . Sentry 5 | . . . . . 5 . Hunter 1 | . . . . . 1 . Assembled 15 | . . . . 15 . . Best Kill Streak 14 | 2 6 . . 14 10 4 Combat Bots Only 14 | . 6 . . 14 7 4 Max Kills in Single Turn 4 | 1 1 . . 4 3 2 Gunslinging . | . . . . . . . Exploded 4 | . . . . 4 3 2 Melee . | . . . . . . . Uniques/NPCs Destroyed . | . . . . . . . Combat | -11 -10 -10 -10 -9 -8 -8 -------- Run | Yrd Mat Min Exi Min Mat Gar Hostile Shots Fired 288 | . 48 . . 72 127 41 Missed 108 | . 19 . . 26 45 18 Damage Taken 2670 | . 288 . . 720 1171 491 Core 448 | . 49 . . 122 180 97 Absorbed by Shields . | . . . . . . . Redirected to Shielding 10 | . . . . 10 . . Core Remaining (%) 65 | 100 . . . 31 . . Volleys Fired 153 | 6 29 . . 34 76 8 Largest 2 | 2 2 . . 2 2 2 Hottest 100 | 70 46 . . 56 72 100 Shots Fired 271 | 12 58 . . 43 143 15 Gun 231 | 12 58 . . 30 121 10 Cannon . | . . . . . . . Launcher 39 | . . . . 13 22 4 Special 1 | . . . . . . 1 Kinetic 225 | 6 58 . . 30 121 10 Thermal 7 | 6 . . . . . 1 Explosive 39 | . . . . 13 22 4 Electromagnetic . | . . . . . . . Robot Hit Streak 18 | 5 14 . . 6 18 10 Robot Miss Streak 3 | 1 3 . . 2 2 . Penetration Max . | . . . . . . . Secondary Targets . | . . . . . . . Shots Hit Robots 172 | 9 35 . . 25 99 4 Core Hits 136 | 3 15 . . 40 70 8 Critical Kills 3 | . 1 . . 1 1 . Critical Parts Destroyed 2 | . 1 . . . 1 . Critical Strikes 5 | . 2 . . 1 2 . Destroy 5 | . 2 . . 1 2 . Melee Attacks 4 | . . . . . 4 . Impact 4 | . . . . . 4 . Slashing . | . . . . . . . Piercing . | . . . . . . . Sneak Attacks . | . . . . . . . Combat Hostiles . | . . . . . . . Follow-up Attacks . | . . . . . . . Damage Inflicted 5442 | 85 522 . . 1588 3013 234 Guns 2384 | 85 522 . . 286 1442 49 Cannons . | . . . . . . . Explosions 2944 | . . . . 1229 1530 185 Melee . | . . . . . . . Ramming 114 | . . . . 73 41 . Kinetic 2335 | 36 522 . . 286 1442 49 Thermal 137 | 49 . . . . 88 . Explosive 2805 | . . . . 1229 1391 185 Electromagnetic 51 | . . . . . 51 . Impact . | . . . . . . . Slashing . | . . . . . . . Piercing . | . . . . . . . Highest Corruption 1 | . 1 1 1 1 . . Average Corruption 1 | . 1 1 1 1 . . Corruption Purged . | . . . . . . . Corruption Blocked . | . . . . . . . Effects 17 | . 8 1 4 4 . . Message Errors 9 | . 4 . 3 2 . . Matter Fused 2 | . 1 . . 1 . . Heat Flow Errors 1 | . . 1 . . . . Energy Discharges 2 | . 1 . 1 . . . Data Loss (minor) 2 | . 2 . . . . . Misfires 1 | . . . . 1 . . Overload Shots . | . . . . . . . Overflow Damage 59 | . . . . 18 30 11 Projectiles . | . . . . . . . Explosions 59 | . . . . 18 30 11 Melee . | . . . . . . . Knockbacks 1 | . . . . . 1 . Impact 1 | . . . . . 1 . Kinetic . | . . . . . . . Secondary . | . . . . . . . Self-Inflicted Damage 146 | . . . . 92 . 54 Shots 8 | . . . . 7 . 1 Rammed . | . . . . . . . Targets Rammed 16 | . . . . 12 4 . Kicked 16 | . . . . 12 4 . Crushed . | . . . . . . . Highest Temperature 135 | 100 31 135 . 18 30 . Average Temperature 24 | 57 13 68 . 10 9 . Received Heat Transfer 681 | . 111 . . 66 468 36 Siege Activations . | . . . . . . . Robots Corrupted . | . . . . . . . Combat Hostiles . | . . . . . . . Parts Fried . | . . . . . . . Impact Corruptions . | . . . . . . . Robots Melted . | . . . . . . . Combat Hostiles . | . . . . . . . Parts Melted . | . . . . . . . Heat Transferred 248 | 148 . . . . 100 . Parts Sabotaged . | . . . . . . . Parts Stolen . | . . . . . . . Parts Stripped . | . . . . . . . Power Chain Reactions . | . . . . . . . Alert | -11 -10 -10 -10 -9 -8 -8 ------- Run | Yrd Mat Min Exi Min Mat Gar Peak Influence 619 | 10 302 78 . 419 619 602 Initial 402 | . 6 78 . . 92 402 Average 217 | 6 75 78 . 274 320 525 Maximum Alert Level 2 | . 1 . . 2 2 2 Low Security (%) 46 | 100 86 100 . 14 18 . Level 1 35 | . 13 . . 66 57 . Level 2 17 | . . . . 18 23 100 Level 3 . | . . . . . . . Level 4 . | . . . . . . . Level 5 . | . . . . . . . High Security . | . . . . . . . Max Security . | . . . . . . . Squads Dispatched 7 | . 1 . . 1 5 . Investigation 2 | . . . . . 2 . Extermination . | . . . . . . . Reinforcement 4 | . 1 . . 1 2 . Assault . | . . . . . . . Garrison 1 | . . . . . 1 . Intercept . | . . . . . . . Searches Triggered . | . . . . . . . Construction Impeded 2 | . . . . 1 1 . Haulers Reinforced . | . . . . . . . Active Scanning Responses . | . . . . . . . Cargo Convoy Interrupts . | . . . . . . . Stealth | -11 -10 -10 -10 -9 -8 -8 --------- Run | Yrd Mat Min Exi Min Mat Gar Distress Signals 2 | . . . . . 2 . Communications Jammed . | . . . . . . . Distress Signals . | . . . . . . . Times Spotted 94 | . 19 . . 33 38 4 Peak Tracking Total 11 | . 5 . . 11 5 2 Tactical Retreats 9 | . 3 . . 4 1 1 Traps | -11 -10 -10 -10 -9 -8 -8 ------- Run | Yrd Mat Min Exi Min Mat Gar Traps Triggered 4 | . 1 . . . 1 2 Indirectly . | . . . . . . . Trap Hack Attempts . | . . . . . . . Triggered . | . . . . . . . Disarmed . | . . . . . . . Reprogrammed . | . . . . . . . Reused . | . . . . . . . Traps Extracted . | . . . . . . . Installed . | . . . . . . . Triggered . | . . . . . . . Machines | -11 -10 -10 -10 -9 -8 -8 ---------- Run | Yrd Mat Min Exi Min Mat Gar Machines Disabled 9 | . . . . . 7 2 Max in Single Turn 1 | . . . . . 1 1 Garrison Relay 1 | . . . . . . 1 Machines Repaired . | . . . . . . . Machines Dismantled . | . . . . . . . Machines Sabotaged . | . . . . . . . Overloaded Fab Kills . | . . . . . . . Hacking | -11 -10 -10 -10 -9 -8 -8 --------- Run | Yrd Mat Min Exi Min Mat Gar Machines Accessed 19 | . 7 . 3 . 8 1 Terminals 14 | . 7 . . . 6 1 Fabricators . | . . . . . . . Repair Stations . | . . . . . . . Recycling Units . | . . . . . . . Scanalyzers 1 | . . . . . 1 . Garrison Access 1 | . . . . . 1 . Total Hacks 51 | . 21 . 12 . 17 1 Successful 25 | . 9 . 12 . 3 1 Failed 26 | . 12 . . . 14 . Catastrophic 7 | . 3 . . . 4 . Database Lockouts . | . . . . . . . Manual 26 | . 15 . 1 . 10 . Terminals 36 | . 21 . . . 14 1 Fabricators . | . . . . . . . Repair Stations . | . . . . . . . Recycling Units . | . . . . . . . Scanalyzers 2 | . . . . . 2 . Garrison Access 1 | . . . . . 1 . Terminal Hacks 21 | . 7 . 12 . 1 1 Record 11 | . . . 11 . . . Robot Analysis 3 | . 3 . . . . . Emergency Access Points 1 | . 1 . . . . . Unreport Threat 1 | . . . . . 1 . Locate Traps 1 | . 1 . . . . . Dispatch Records 1 | . 1 . . . . . Zone Layout 1 | . 1 . . . . . Security Stations 1 | . . . . . . 1 Derelict Proto ID Bank 1 | . . . 1 . . . Fabricator Hacks . | . . . . . . . Repair Station Hacks . | . . . . . . . Recycling Unit Hacks . | . . . . . . . Scanalyzer 1 | . . . . . 1 . Insert Component 1 | . . . . . 1 . Garrison Access Hacks 1 | . . . . . 1 . Unlock Access 1 | . . . . . 1 . Unauthorized Hacks 2 | . 2 . . . . . Terminals 2 | . 2 . . . . . Botnet 1 | . 1 . . . . . Operators 1 | . 1 . . . . . Fabricators . | . . . . . . . Repair Stations . | . . . . . . . Recycling Units . | . . . . . . . Scanalyzers . | . . . . . . . Garrison Access . | . . . . . . . Data Cores Recovered . | . . . . . . . Used . | . . . . . . . Hacking Detections 15 | . 7 . . . 8 . Full Trace Events 1 | . . . . . 1 . Feedback Events . | . . . . . . . Feedback Blocked . | . . . . . . . Robot Schematics Acquired . | . . . . . . . Robots Built . | . . . . . . . Authchips . | . . . . . . . Time . | . . . . . . . Total Robot Build Rating . | . . . . . . . Part Schematics Acquired . | . . . . . . . Parts Built . | . . . . . . . Authchips . | . . . . . . . Time . | . . . . . . . Total Part Build Rating . | . . . . . . . Parts Repaired . | . . . . . . . Time . | . . . . . . . Parts Recycled . | . . . . . . . Recycled Matter . | . . . . . . . Retrieved Matter . | . . . . . . . Retrieved Components . | . . . . . . . Parts Scanalyzed 1 | . . . . . 1 . Part Schematics Acquired . | . . . . . . . Parts Damaged . | . . . . . . . Bothacking | -11 -10 -10 -10 -9 -8 -8 ------------ Run | Yrd Mat Min Exi Min Mat Gar Used RIF Installer . | . . . . . . . Robots Hacked . | . . . . . . . Non-combat . | . . . . . . . Combat . | . . . . . . . Robot Hacks Applied . | . . . . . . . Relay Couplers Released 3 | . . . . . . 3 Machine Destruction 3 | . . . . . . 3 Fabnet Peak Effective % . | . . . . . . . Robots Rewired . | . . . . . . . Allies Hacked . | . . . . . . . Hacks Repelled . | . . . . . . . Allies | -11 -10 -10 -10 -9 -8 -8 -------- Run | Yrd Mat Min Exi Min Mat Gar Total Allies . | . . . . . . . Largest Group . | . . . . . . . Highest-Rated Group . | . . . . . . . Highest-Rated Ally . | . . . . . . . Total Orders . | . . . . . . . Ally Attacks . | . . . . . . . Total Damage . | . . . . . . . Kills . | . . . . . . . Allies Corrupted . | . . . . . . . Allies Melted . | . . . . . . . Intel | -11 -10 -10 -10 -9 -8 -8 ------- Run | Yrd Mat Min Exi Min Mat Gar Robot Analysis Total 3 | . 3 . . . . . Derelict Logs Recovered 3 | . . . . 3 . . Drone Launches . | . . . . . . . Drone Recoveries . | . . . . . . . Exploration | -11 -10 -10 -10 -9 -8 -8 ------------- Run | Yrd Mat Min Exi Min Mat Gar Turns Passed 3954 | 56 1344 90 525 683 1028 228 Spaces Moved 2598 | 21 744 57 365 634 608 169 Core . | . . . . . . . Treads 1086 | 21 744 57 264 . . . Legs 1512 | . . . 101 634 608 169 Wheels . | . . . . . . . Hover . | . . . . . . . Flight . | . . . . . . . Fastest Speed 90 | 160 160 160 90 90 90 103 Average Speed 124 | 160 160 160 140 90 106 107 Slowest Speed 170 | 160 160 160 170 90 107 113 Overloaded Moves . | . . . . . . . Propulsion Burnouts . | . . . . . . . Robots Hopped . | . . . . . . . Cave-ins Triggered . | . . . . . . . Exploration Rate (%) 50 | 2 98 13 62 93 53 31 Regions Visited 6 Branch Regions 3 Pre-discovered Areas 3 | . . . 1 2 . . Known Exits Taken 3 | . 1 1 . . 1 . Unknown Exits Taken 3 | 1 . . 1 1 . . Scrap Searched 3 | . . 1 . 2 . . Spaces Dug 2 | . . . . . 2 . Terrain Destroyed 279 | . . . . 121 102 56 Melee 2 | . . . . . 2 . Projectile . | . . . . . . . AOE 277 | . . . . 121 100 56 Terrain Rammed . | . . . . . . . Walls Destroyed . | . . . . . . . Machines Disabled . | . . . . . . . Actions | -11 -10 -10 -10 -9 -8 -8 --------- Run | Yrd Mat Min Exi Min Mat Gar Total 3042 | 33 840 56 377 703 837 196 Wait 128 | . 32 . . 1 84 11 Move 2592 | 20 743 56 364 633 608 168 Hop . | . . . . . . . Pick Up 30 | . 12 . 1 6 10 1 Fast Attach 13 | 1 4 . 2 1 4 1 Attach 11 | . 1 . 2 . 6 2 Detach 11 | . 3 . 4 1 3 . Swap 48 | 2 7 . 1 9 24 5 Drop 36 | 4 9 . 3 6 14 . Fire 153 | 6 29 . . 34 76 8 Melee 4 | . . . . . 4 . Ram . | . . . . . . . Kick 16 | . . . . 12 4 . Crush . | . . . . . . . Escape Stasis . | . . . . . . . Rewire . | . . . . . . . Trap . | . . . . . . . Miscellaneous . | . . . . . . . Route ------- -11/Scrapyard -10/Materials (discovered 5 exits: *Mat x3 / *Min x2) -10/Mines -10/Exiles -9/Mines -8/Materials (discovered 3 exits: *Fac x2 / Gar) -8/Garrison (discovered 1 exit: [*Mat]) History --------- Turn | Location | Event 23 | -11/Scrapyard | Discovered new exit (range 3) 57 | -11/Scrapyard | Entered Materials 312 | -10/Materials | Build established: Mutant 350 | -10/Materials | Discovered new exit (range 7) 379 | -10/Materials | Discovered new exit (range 15) 437 | -10/Materials | Identified exit to Materials 697 | -10/Materials | Discovered exit to Materials (range 16) 1067 | -10/Materials | Discovered exit to Materials (range 10) 1337 | -10/Materials | Discovered new exit (range 6) 1346 | -10/Materials | Identified exit to Mines 1401 | -10/Materials | Entered Mines 1485 | -10/Mines | Deemed a non-threat by the Exiles lab entrance 1485 | -10/Mines | Discovered new exit (range 5) 1489 | -10/Mines | Identified exit to Exiles 1491 | -10/Mines | Entered Exiles 1530 | -10/Exiles | Met 8R-AWN 1559 | -10/Exiles | Met EX-HEX 1605 | -10/Exiles | Met EX-BIN 1634 | -10/Exiles | Aligned with FarCom system 1635 | -10/Exiles | Given EX-Vault access code 1677 | -10/Exiles | Met EX-DEC 1687 | -10/Exiles | Learned location of Zion (-6) 1803 | -10/Exiles | Opened EX-Vault 1867 | -10/Exiles | Warned to stay clear of 0b10 Research branches 1868 | -10/Exiles | Exiles lab attacked by MAIN.C 1908 | -10/Exiles | Found Prototype Device 1908 | -10/Exiles | Identified Supersonic Drone Bay 1917 | -10/Exiles | Found Prototype Leg 1919 | -10/Exiles | Identified Potential Leg 1922 | -10/Exiles | Found Potential Leg 2009 | -10/Exiles | Discovered new exit (range 10) 2016 | -10/Exiles | Left Exiles lab with Potential Leg 2016 | -10/Exiles | Entered Mines 2027 | -9/Mines | Learned location of Storage (-7) 2172 | -9/Mines | Found DCF Scrap (13 items) 2242 | -9/Mines | Received a Rocket Launcher from a helpful Derelict 2248 | -9/Mines | Assembled infested the area 2322 | -9/Mines | Core integrity fell below 50% 2349 | -9/Mines | Destroyed 14 combat bots 2692 | -9/Mines | Discovered new exit (range 9) 2699 | -9/Mines | Entered Materials 2699 | -8/Materials | Evolved 4 slots: Propulsion x2, Utility x2 2700 | -8/Materials | Identified exit to Factory 3489 | -8/Materials | Discovered exit to Factory (range 16) 3651 | -8/Materials | Garrison activated, responded to threat 3708 | -8/Materials | Destroyed 7 combat bots 3727 | -8/Materials | Identified exit to Garrison 3727 | -8/Materials | Entered Garrison 3762 | -8/Garrison | Learned Materials security intel 3768 | -8/Garrison | Garrison Relay disabled 3781 | -8/Garrison | Triggered checkpoint 3910 | -8/Garrison | Spotted B-75 Beast 3943 | -8/Garrison | Core integrity fell below 50% 3946 | -8/Garrison | Discovered new exit (range 4) 3952 | -8/Garrison | Attempted to access garrison exit controls, blocked by remote lockdown 3955 | -8/Garrison | Self-destructed Last Messages --------------- 03830_ The unstable cave ceiling collapses. 03846_ Penetrated by Slug. 03857_ Lgt. Deuterium Engine destroyed. 03873_ Slug penetrates Wall. 03885_ Penetrated by Slug. 03888_ Slug penetrates Wall. 03888_ Carbon-fiber Leg destroyed. 03889_ Extracted 50 matter. 03906_ Slug penetrates Wall. 03911_ Slug penetrates H-55 Commando. 03923_ Machine disabled. 03923_ Slug penetrates Phase Generator. 03925_ Slug penetrates Wall. 03934_ Lgt. Nuclear Core destroyed. 03934_ Potential Leg blasted off. 03939_ Acquired Potential Leg. 03942_ Acquired 1 matter. 03946_ EXIT=FOUND 03952_ Attempting to access garrison exit controls... 03952_ Remote lockdown engaged. Map ----- +----------------------------------------------------+ | ??????????????????????????????????????????????? | | ??????????????????????????????????????????????? | | ??????????????????????????????????????????????? | | ??????????????????????????????????????????????? | | ??????????????????????????????????????????????? | | ??????????????????????????????????????????????? | | ??????????????????#######?????????????????????? | | ??????????????????#" """"######???????????????? | | ??????????????????#" " #???????????????? | | ??????????????????#" #???????????????? | | ??????????????????#" #???????????????? | | ?????????????????##" " ######??????????? | | ?????????????????"""" """ #??????????? | | ???????????????????# " h"""" #??????????? | | ???????????????????# ##""/###????????? | | ???????????????????# #?#! !#????????? | | ???????????????????# BB #?#! !#????????? | | ???????????????????# BB #?## ##????????? | | ???????????????????## #########??# /?????????? | | ????????????????????# #??????????# / ????????? | | ??????????????????###;##?????????# #+#???????? | | ??????????????????# #?????????# # ????????? | | ??????????????????# < #?????????# # ???????? | | ??????????????????# #?????????# #?#???????? | | ??????????????????### #?????????# #?????????? | | ????????????????????# @#?????????# #?????????? | | ????????????????????# #?????????# #?????????? | | ????????????????????# #?????????# #?????????? | | ????????????????????# #?????????# #?????????? | | ????????????????????# ########### ########### | | ????????????????????# # | | ??????????????g?????# # | | ????????????????????######## ##### ######## # | | ??????????????g????????????Y?????# #??????# # | | ?????????????????????????????????# #??????# # | | ?????????????????????????????????# #??????# # | | ?????????????????????????????????# #??????# # | | ?????????????????????????????????# #??????# # | | ?????????????????????????????????# #??????# # | | ?????????????????????????????????# #?????## # | | ?????????????????????????????????# ####### | | ?????????????????????????????????# | | ?????????????????????????????????# | | ?????????????????????????????????########## # | | ??????????????????????????????????????????# # | | ??????????????????????????????????????????" | | ??????????????????????????????????????????" | | ??????????????????????????????????????????" | | ??????????????????????????????????????????" | | ???????????????????####???????????????????# # | +----------------------------------------------------+ Best States ------------- Heat Dissipation 31 Energy Generation 14 Energy Capacity 250 Matter Stores 300 Matter Capacity 300 Sight Range 16 Terrain Scan Density 10 Armor Coverage 150 Utility Shielding 33 Evasion (%) 63 Targeting Accuracy 8 Launcher Accuracy 20 Recoil Reduction 2 Item Schematics ----------------- None Robot Schematics ------------------ None Fabricated ------------ Nothing Alien Tech Used ----------------- None Achievements -------------- Exterminator Challenges ------------ None Game ------ Seed TacticalSiegeSabre Manual? 0 Play Time 00:46:02 Cumulative 23.5 hours Start 2024.10.11 @ 18:32:21 End 2024.10.11 @ 19:22:25 Sessions 1 Manual Loads 0 Difficulty Rogue Special Mode None Game No. 38 Rogue 38 Adventurer 0 Explorer 0 Win Type - Total 0 Types 0/0/0/0/0/0/0/0/0 Lore% 16 Gallery% 24 Achievement% 31 Wizard Run 0 Options --------- Layout 0 ASCII 0 Keyboard 0 Movement Numpad Keybinds 0 Fullscreen 2 Font 24/X11 Map View 76x50 Zoom Use 0% Tactical HUD 1 Map Filters NONE Filters NONE Steam 1 RUN: 91b1cb5a-1dd2-4bfa-be4d-2ce183a27701